bitfinex/quotes_SOLUSD_20240906
["timestamp","ask_amount","ask_price","bid_price","bid_amount"]
[1725640747572,20.0,127.81,127.78,10.0]
[1725640747772,80.34733647,127.8,127.76,10.0]
[1725640747999,9.78269045,127.79,127.76,10.0]
[1725640748298,20.0,127.78,127.76,10.0]
[1725640748504,20.0,127.78,127.76,17.8266]
[1725640749093,20.0,127.79,127.76,10.0]
[1725640749300,45.0,127.78,127.76,10.0]
[1725640749595,21.95700039,127.77,127.75,1.9613852]
[1725640749776,1.95723253,127.76,127.75,1.9613852]
[1725640749981,20.0,127.77,127.75,1.9613852]
[1725640750184,27.8268,127.77,127.75,1.9613852]
[1725640750595,20.0,127.77,127.75,1.9613852]
[1725640751086,20.0,127.77,127.74,17.8283]
[1725640751479,20.0,127.77,127.76,10.0]
[1725640751702,66.95726235,127.77,127.74,10.0]
[1725640751999,35.34733647,127.77,127.74,10.0]
[1725640752174,65.0,127.76,127.74,10.0]
[1725640752778,65.0,127.76,127.72,17.8294]
[1725640753172,1.9574284,127.75,127.72,10.0]
[1725640753789,1.9574284,127.75,127.7,10.0]
[1725640753790,7.8286,127.74,127.7,10.0]
[1725640754094,108.17663647,127.73,127.7,10.0]
[1725640754297,45.0,127.72,127.7,10.0]
[1725640754506,45.0,127.72,127.68,17.832]
[1725640754868,45.0,127.72,127.68,10.0]
[1725640755091,20.0,127.73,127.7,17.8308]
[1725640755299,45.0,127.72,127.69,27.4094]
[1725640755501,63.17793647,127.71,127.66,10.0]
[1725640755675,35.34733647,127.69,127.66,10.0]
[1725640755875,7.8327,127.67,127.65,0.4859]
[1725640756102,7.8321,127.68,127.65,0.4859]
[1725640756281,65.0,127.67,127.65,0.4859]
[1725640757191,20.0,127.67,127.65,0.4859]
[1725640757405,20.0,127.67,127.66,10.0]
[1725640757805,8.1782096,127.73,127.68,10.0]
[1725640758114,27.8296,127.72,127.68,10.0]
[1725640758691,57.84523647,127.69,127.62,9.81234605]
[1725640758899,8.55039755,127.68,127.52,16.6595]
[1725640759213,35.34733647,127.61,127.52,16.6595]
[1725640759514,21.95995019,127.6,127.52,16.6595]
[1725640759823,82.30752103,127.59,127.52,16.6595]
[1725640759987,35.34733647,127.57,127.52,19.6043]
[1725640760319,35.34733647,127.55,127.52,19.6043]
[1725640760610,55.34733647,127.56,127.52,19.6043]
[1725640760811,45.0,127.55,127.52,19.6043]
[1725640760990,45.0,127.55,127.5,7.843]
[1725640760991,1.96062388,127.54,127.5,7.843]
[1725640761192,1.96062388,127.54,127.49,19.6089]
[1725640761193,57.30796035,127.54,127.49,19.6089]
[1725640761391,35.34733647,127.52,127.49,27.4525]
[1725640761595,35.34733647,127.52,127.49,19.6089]
[1725640761884,20.0,127.51,127.47,7.8443]
[1725640762091,45.0,127.53,127.48,7.8441]
[1725640762304,45.0,127.53,127.46,19.6137]
[1725640762305,44.44301598,127.5,127.46,19.6137]
[1725640762609,64.44301598,127.52,127.48,7.8442]
[1725640762804,64.44301598,127.52,127.41,50.0]
[1725640762805,10.0,127.5,127.33,19.6137]
[1725640763110,44.44301598,127.44,127.32,39.83705344]
[1725640763315,46.40561238,127.44,127.32,41.40734769]
[1725640763603,20.0,127.43,127.35,50.0]
[1725640763914,1.96203205,127.48,127.42,19.6193]
[1725640764209,91.40504803,127.48,127.42,19.6193]
[1725640764508,65.0,127.47,127.42,19.6193]
[1725640764694,72.845,127.47,127.42,19.6193]
[1725640765011,66.9620712,127.47,127.42,19.6193]
[1725640765400,66.9620712,127.47,127.42,27.4673]
[1725640765785,44.44301598,127.46,127.42,27.4673]
[1725640766007,66.96201733,127.45,127.42,27.4673]
[1725640766212,65.0,127.45,127.42,27.4673]
[1725640766393,65.0,127.45,127.42,19.6193]
[1725640766599,65.0,127.45,127.35,91.57252917]
[1725640766600,44.44301598,127.44,127.39,27.474]
[1725640766800,44.44301598,127.42,127.39,27.474]
[1725640766986,44.44301598,127.42,127.4,7.8489]
[1725640768111,44.44301598,127.42,127.39,19.6244]
[1725640768112,44.44301598,127.42,127.41,7.8486]
[1725640768321,64.44301598,127.42,127.41,7.8486]
[1725640768485,44.44301598,127.44,127.43,7.8474]
[1725640768690,1.96244473,127.46,127.42,19.6197]
[1725640768691,44.44301598,127.46,127.42,19.6197]
[1725640769000,44.44301598,127.46,127.45,7.8462]
[1725640769200,44.44301598,127.48,127.45,19.6154]
[1725640769712,44.44301598,127.48,127.46,7.8454]
[1725640770287,44.44301598,127.48,127.47,7.8449]
[1725640770530,46.40459024,127.54,127.5,7.8429]
[1725640770690,46.40459024,127.54,127.51,7.8423]
[1725640770691,44.44301598,127.54,127.51,7.8423]
[1725640770899,9.80094498,127.56,127.45,94.44301598]
[1725640770900,44.44301598,127.56,127.45,94.44301598]
[1725640771094,44.44301598,127.6,127.56,7.8394]
[1725640771289,1.96023367,127.59,127.55,7.8399]
[1725640771723,1.96023367,127.59,127.56,7.8394]
[1725640772493,46.40313172,127.6,127.56,7.8394]
[1725640772700,1.96009854,127.59,127.56,7.8394]
[1725640772915,44.44301598,127.6,127.57,7.8387]
[1725640773423,44.44301598,127.6,127.55,19.5989]
[1725640773424,46.40291413,127.62,127.58,7.8381]
[1725640773719,46.40291413,127.62,127.57,7.8382]
[1725640774111,46.40291413,127.62,127.58,7.8379]
[1725640774417,46.40291413,127.62,127.59,7.8374]
[1725640774595,46.40291413,127.62,127.58,19.595]
[1725640774795,46.40291413,127.62,127.58,27.4327]
[1725640775317,9.79242386,127.67,127.54,50.0]
[1725640775517,1.95962386,127.67,127.63,7.8346]
[1725640775690,1.95894898,127.68,127.57,44.44301598]
[1725640776014,44.44301598,127.63,127.59,27.4304]
[1725640776231,1.95951205,127.62,127.59,27.4304]
[1725640776407,52.27951598,127.61,127.49,44.44301598]
[1725640776595,44.44301598,127.59,127.53,19.6024]
[1725640776797,46.96019461,127.58,127.54,7.8401]
[1725640777102,20.0,127.57,127.54,7.8401]
[1725640777488,20.0,127.57,127.55,7.8399]
[1725640777715,20.0,127.57,127.53,27.4435]
[1725640777897,1.96028431,127.56,127.53,27.4435]
[1725640778099,1.96028431,127.56,127.54,7.8404]
[1725640778300,20.0,127.57,127.54,7.8404]
[1725640778912,1.96028502,127.56,127.53,27.4435]
[1725640779115,45.0,127.56,127.53,27.4435]
[1725640779318,20.0,127.57,127.54,7.8406]
[1725640779518,21.96041109,127.58,127.54,7.8406]
[1725640779823,45.0,127.57,127.54,7.8406]
[1725640779995,20.0,127.56,127.54,7.8406]
[1725640780317,20.0,127.56,127.5,19.607]
[1725640780318,45.0,127.55,127.5,19.607]
[1725640780620,21.96074151,127.54,127.51,7.842]
[1725640780799,20.0,127.54,127.52,7.8417]
[1725640781498,20.0,127.54,127.53,7.8412]
[1725640781693,1.96049266,127.6,127.48,50.0]
[1725640781899,9.79710516,127.61,127.56,7.8388]
[1725640782313,9.79699612,127.61,127.56,7.8388]
[1725640782507,7.8369,127.61,127.56,7.8388]
[1725640782699,9.79702762,127.61,127.56,7.8388]
[1725640782895,54.23891216,127.62,127.57,7.8386]
[1725640783103,20.0,127.61,127.56,19.5977]
[1725640783310,20.0,127.61,127.59,7.8375]
[1725640783511,9.79473642,127.63,127.58,7.838]
[1725640783712,7.8358,127.62,127.57,7.8387]
[1725640783920,9.7956549,127.62,127.57,7.8387]
[1725640784113,44.44301598,127.6,127.53,19.6031]
[1725640784420,44.44301598,127.56,127.5,7.8429]
[1725640784620,21.96083621,127.55,127.5,27.45]
[1725640784921,45.0,127.54,127.5,27.45]
[1725640787599,45.0,127.54,127.45,15.8302]
[1725640787600,21.96084698,127.53,127.45,15.8302]
[1725640787903,45.0,127.52,127.45,15.8302]
[1725640788224,1.96128263,127.51,127.47,7.8448]
[1725640788396,45.0,127.52,127.48,7.8438]
[1725640788603,20.0,127.53,127.5,7.8431]
[1725640788810,20.0,127.54,127.51,7.8424]
[1725640789015,20.0,127.55,127.51,7.8424]
[1725640789201,46.9607462,127.54,127.5,7.843]
[1725640789911,89.44301598,127.54,127.41,1.56869473]
[1725640790214,89.44301598,127.54,127.4,6.0209]
[1725640790215,44.44301598,127.51,127.4,6.0209]
[1725640790405,7.8441,127.49,127.44,7.8465]
[1725640790609,45.0,127.48,127.45,7.846]
[1725640790914,9.8051538,127.5,127.45,7.846]
[1725640791228,65.0,127.49,127.45,7.846]
[1725640791525,65.0,127.49,127.46,7.8451]
[1725640792027,20.0,127.49,127.47,7.8448]
[1725640792231,1.96150898,127.55,127.43,44.44301598]
[1725640792417,9.80150898,127.55,127.5,7.8426]
[1725640793111,9.80160898,127.55,127.51,7.8424]
[1725640793314,9.80160898,127.55,127.5,7.8429]
[1725640793829,45.0,127.54,127.5,7.8429]
[1725640794323,45.0,127.54,127.41,44.44301598]
[1725640794324,44.44301598,127.52,127.41,44.44301598]
[1725640794621,1.96142941,127.51,127.41,44.44301598]
[1725640794827,46.96142941,127.51,127.47,7.8448]
[1725640795028,45.0,127.51,127.47,7.8447]
[1725640795411,45.0,127.51,127.48,7.8442]
[1725640795715,54.24521144,127.54,127.5,7.843]
[1725640796114,20.0,127.53,127.5,7.843]
[1725640796606,20.0,127.53,127.44,1.56874447]
[1725640796607,20.0,127.54,127.45,44.44301598]
[1725640796811,20.0,127.55,127.52,7.8417]
[1725640797419,20.0,127.55,127.46,45.0]
[1725640797722,20.0,127.55,127.47,16.4411]
[1725640798033,20.0,127.55,127.48,45.0]
[1725640798205,29.80007552,127.56,127.47,16.4411]
[1725640798601,20.0,127.56,127.47,16.4411]
[1725640798806,21.96054013,127.56,127.47,16.4411]
[1725640799007,27.8396,127.56,127.47,16.4411]
[1725640799314,20.0,127.56,127.47,16.4411]
[1725640799618,21.9605365,127.56,127.47,16.4411]
[1725640799825,45.0,127.55,127.47,16.4411]
[1725640800127,21.96088663,127.54,127.47,16.4411]
[1725640800431,44.44301598,127.52,127.42,15.296]
[1725640800630,66.96141439,127.51,127.42,15.296]
[1725640800928,74.80391439,127.51,127.42,15.296]
[1725640801344,66.96141439,127.51,127.42,15.296]
[1725640801530,65.0,127.51,127.42,15.296]
[1725640801831,66.96143249,127.51,127.42,15.296]
[1725640802123,65.0,127.51,127.42,15.296]
[1725640802503,45.0,127.51,127.42,15.296]
[1725640802705,45.0,127.51,127.43,44.44301598]
[1725640802909,46.96135345,127.52,127.42,15.296]
[1725640803128,45.0,127.52,127.42,15.296]
[1725640803332,45.0,127.52,127.43,45.0]
[1725640804704,2.95815939,127.54,127.44,1.56896951]
[1725640804911,20.0,127.54,127.45,94.44301598]
[1725640805208,21.96059796,127.54,127.45,44.44301598]
[1725640805408,20.0,127.54,127.45,44.44301598]
[1725640805731,20.0,127.54,127.44,1.56870979]
[1725640805908,21.96079497,127.54,127.45,44.44301598]
[1725640806114,20.0,127.54,127.45,44.44301598]
[1725640806527,20.0,127.54,127.46,45.0]
[1725640806729,20.0,127.54,127.46,46.5685593]
[1725640806925,20.0,127.55,127.46,45.0]
[1725640807230,27.8402,127.55,127.46,45.0]
[1725640808229,45.0,127.54,127.45,44.44301598]
[1725640808432,45.0,127.54,127.42,15.296]
[1725640808433,20.0,127.53,127.42,15.296]
[1725640808632,91.4042189,127.52,127.42,15.296]
[1725640808846,9.8042704,127.51,127.42,15.296]
[1725640809048,65.0,127.5,127.42,15.296]
[1725640809836,1.96154904,127.49,127.4,6.0209]
[1725640810221,9.80656184,127.48,127.4,6.0209]
[1725640810415,109.44301598,127.5,127.4,6.0209]
[1725640810416,65.0,127.5,127.41,46.01242707]
[1725640810737,20.0,127.5,127.41,96.01242707]
[1725640810922,6.0441,127.55,127.43,94.44301598]
[1725640811239,6.0441,127.55,127.45,44.44301598]
[1725640811441,23.8738,127.57,127.46,46.56862982]
[1725640811740,7.8395,127.56,127.46,45.0]
[1725640811939,7.8395,127.56,127.46,46.56844707]
[1725640812121,17.99515884,127.57,127.46,46.56844707]
[1725640812122,9.79956348,127.57,127.46,46.56844707]
[1725640812321,52.28131598,127.58,127.47,44.44301598]
[1725640812644,52.28131598,127.58,127.47,46.01137407]
[1725640812645,7.8389,127.57,127.47,46.01137407]
[1725640812935,1.96045147,127.56,127.46,60.4976]
[1725640813135,7.8404,127.55,127.46,60.4976]
[1725640813435,9.07504435,127.59,127.48,50.0]
[1725640813635,44.44301598,127.6,127.49,46.56817617]
[1725640813902,44.44301598,127.62,127.5,44.44301598]
[1725640814043,6.638,127.63,127.51,45.0]
[1725640814342,6.638,127.63,127.52,94.44301598]
[1725640814515,14.4733,127.63,127.53,45.0]
[1725640814714,16.43288999,127.63,127.53,45.0]
[1725640814916,6.638,127.63,127.53,45.0]
[1725640815113,10.80630224,127.63,127.54,16.73987001]
[1725640815320,2.97060224,127.63,127.55,45.0]
[1725640815536,7.8333,127.66,127.57,6.0961]
[1725640815734,7.834,127.65,127.57,6.0961]
[1725640815943,7.8348,127.64,127.54,59.61521598]
[1725640816119,7.8348,127.64,127.55,51.56744502]
[1725640816322,7.834,127.65,127.55,51.56727752]
[1725640816635,14.2195,127.67,127.56,44.44301598]
[1725640816948,14.2195,127.67,127.57,1.56710735]
[1725640817146,7.8315,127.69,127.58,44.44301598]
[1725640817437,7.8314,127.7,127.6,44.44301598]
[1725640817655,7.8314,127.7,127.6,46.00976042]
[1725640817866,6.0276,127.71,127.61,45.0]
[1725640817867,7.8303,127.71,127.61,45.0]
[1725640818051,7.8309,127.7,127.62,1.56669333]
[1725640818242,7.8335,127.66,127.56,44.44301598]
[1725640818560,44.44301598,127.68,127.54,15.1722]
[1725640818561,7.837,127.6,127.54,15.1722]
[1725640818871,46.40274034,127.6,127.5,16.2876]
[1725640819166,7.8384,127.58,127.5,16.2876]
[1725640819460,7.8391,127.57,127.5,16.2876]
[1725640819668,66.40319264,127.56,127.5,16.2876]
[1725640819966,7.8414,127.53,127.45,15.5817]
[1725640820166,46.40380837,127.54,127.45,15.5817]
[1725640820370,65.0,127.53,127.45,15.5817]
[1725640820548,44.44301598,127.52,127.45,15.5817]
[1725640820750,7.8437,127.49,127.45,15.5817]
[1725640821053,1.96100075,127.51,127.4,21.6718]
[1725640821054,44.44301598,127.5,127.4,21.6718]
[1725640821256,44.44301598,127.5,127.41,1.56908688]
[1725640821557,84.6041,127.53,127.4,21.6718]
[1725640821558,44.44301598,127.48,127.4,21.6718]
[1725640821743,7.8456,127.46,127.4,21.6718]
[1725640822149,7.8456,127.46,127.4,15.5817]
[1725640822348,53.36522988,127.48,127.4,15.5817]
[1725640822649,72.8455,127.47,127.4,15.5817]
[1725640822856,1.96178487,127.46,127.4,15.5817]
[1725640823057,7.8462,127.45,127.4,15.5817]
[1725640823563,7.8456,127.46,127.4,15.5817]
[1725640823965,72.845,127.47,127.4,15.5817]
[1725640824674,65.0,127.47,127.4,15.5817]
[1725640824844,55.32715657,127.46,127.35,6.1785]
[1725640825050,65.0,127.47,127.35,6.1785]
[1725640825051,7.8487,127.41,127.35,6.1785]
[1725640825761,7.8481,127.42,127.35,6.1785]
[1725640825963,20.0,127.41,127.35,6.1785]
[1725640826769,27.8486,127.41,127.34,16.2346]
[1725640827065,1.96268396,127.46,127.34,17.80466687]
[1725640827066,7.8475,127.43,127.34,17.80466687]
[1725640827256,7.8487,127.41,127.34,16.2346]
[1725640827456,20.0,127.42,127.34,16.2346]
[1725640827643,7.8488,127.41,127.34,16.2346]
[1725640827843,20.0,127.42,127.34,17.80474071]
[1725640828065,20.0,127.42,127.34,67.80474071]
[1725640828253,20.0,127.42,127.35,1.569943]
[1725640828579,20.0,127.42,127.35,1.56982211]
[1725640828758,20.0,127.43,127.35,1.56982211]
[1725640829280,7.847,127.44,127.35,46.56966245]
[1725640829452,27.8463,127.45,127.36,50.0]
[1725640829766,27.8463,127.45,127.35,46.56966245]
[1725640830272,7.8479,127.43,127.35,45.0]
[1725640830471,7.8469,127.44,127.35,45.0]
[1725640830661,20.0,127.43,127.35,46.56981145]
[1725640831167,27.8475,127.43,127.34,16.2346]
[1725640831370,45.0,127.42,127.34,16.2346]
[1725640831550,52.8481,127.42,127.34,16.2346]
[1725640831758,20.0,127.41,127.34,16.2346]
[1725640832255,20.0,127.41,127.34,17.80468735]
[1725640832464,20.0,127.41,127.34,16.2346]
[1725640832689,20.0,127.42,127.34,16.2346]
[1725640833481,27.8482,127.42,127.34,16.2346]
[1725640834073,7.8487,127.41,127.34,16.2346]
[1725640834865,55.32785656,127.4,127.3,21.6629]
[1725640835078,27.8503,127.39,127.3,21.6629]
[1725640835458,27.8503,127.39,127.31,1.57039996]
[1725640835779,20.0,127.39,127.31,1.57039996]
[1725640835981,27.8499,127.39,127.35,7.8523]
[1725640836178,1.9627669,127.38,127.34,7.8528]
[1725640836680,9.8133669,127.38,127.34,7.8528]
[1725640837179,53.36522988,127.38,127.3,21.6629]
[1725640837359,7.8522,127.36,127.32,7.854]
[1725640837759,7.8526,127.35,127.31,7.8546]
[1725640837964,7.8519,127.36,127.31,7.8546]
[1725640838168,7.8513,127.37,127.33,7.8534]
[1725640838464,27.85,127.39,127.34,7.8526]
[1725640838672,27.85,127.39,127.35,7.8523]
[1725640839679,7.8488,127.41,127.37,7.8511]
[1725640839982,7.8488,127.41,127.31,50.0]
[1725640839983,7.8488,127.41,127.36,7.8512]
[1725640840364,7.8482,127.42,127.37,7.851]
[1725640840575,7.8487,127.41,127.37,7.851]
[1725640840771,7.8482,127.42,127.38,7.8504]
[1725640841085,7.8482,127.42,127.33,51.5699602]
[1725640841272,7.8457,127.46,127.37,50.0]
[1725640841580,6.439,127.47,127.37,50.0]
[1725640841581,7.8462,127.45,127.37,50.0]
[1725640841783,7.8461,127.46,127.38,1.5695153]
[1725640841963,7.8447,127.48,127.38,46.5695153]
[1725640842158,7.8449,127.47,127.38,46.5695153]
[1725640842365,52.3009531,127.49,127.39,50.0]
[1725640842553,44.4570531,127.49,127.38,45.0]
[1725640842753,7.8445,127.48,127.39,1.56929387]
[1725640843062,7.8445,127.48,127.39,51.56929387]
[1725640843366,7.8445,127.48,127.38,45.0]
[1725640843906,44.4570531,127.49,127.39,51.56926786]
[1725640843907,52.3009531,127.49,127.39,51.56926786]
[1725640844059,20.0,127.48,127.39,51.56926786]
[1725640844264,14.2813,127.52,127.41,50.0]
[1725640844573,14.2813,127.52,127.38,45.0]
[1725640844574,7.8445,127.48,127.38,95.0]
[1725640844782,61.18535634,127.49,127.4,50.0]
[1725640845153,1.96152186,127.48,127.38,45.0]
[1725640845467,7.8445,127.48,127.39,51.56929371]
[1725640845655,27.8445,127.48,127.39,51.56929371]
[1725640846376,27.8445,127.48,127.39,50.0]
[1725640846783,20.0,127.48,127.37,1.56891602]
[1725640847080,20.0,127.48,127.38,51.56948997]
[1725640847682,20.0,127.48,127.37,1.56932979]
[1725640847879,7.846,127.46,127.38,1.5694876]
[1725640848061,7.8451,127.47,127.38,51.5694876]
[1725640848863,7.8451,127.47,127.38,1.5694876]
[1725640849264,7.8456,127.46,127.38,1.5694876]
[1725640849791,7.8451,127.47,127.38,1.5694876]
[1725640850274,7.8458,127.46,127.38,1.56932864]
[1725640850666,61.18635634,127.47,127.38,1.56932864]
[1725640850963,20.0,127.46,127.38,1.56932864]
[1725640851163,27.8458,127.46,127.38,1.56932864]
[1725640851374,20.0,127.46,127.37,1.56939177]
[1725640851565,20.0,127.48,127.38,1.56954611]
[1725640851777,7.846,127.46,127.38,1.56954611]
[1725640852167,7.846,127.46,127.38,1.56939076]
[1725640852988,7.8451,127.47,127.38,1.56939076]
[1725640853288,20.0,127.46,127.38,1.56939076]
[1725640853577,20.0,127.46,127.38,51.56939076]
[1725640853783,27.8457,127.46,127.37,46.56929293]
[1725640853986,27.8457,127.46,127.36,50.0]
[1725640854168,7.8463,127.45,127.36,51.56956759]
[1725640854489,7.8464,127.45,127.36,51.56956759]
[1725640854684,7.8475,127.43,127.34,6.5268]
[1725640854874,7.847,127.44,127.35,1.56986668]
[1725640855398,7.847,127.44,127.34,56.5268]
[1725640855399,1.96225884,127.43,127.34,56.5268]
[1725640855684,7.847,127.44,127.34,56.5268]
[1725640857077,7.847,127.44,127.35,1.56980727]
[1725640857287,7.847,127.44,127.34,56.5268]
[1725640857489,7.847,127.44,127.34,58.09660727]
[1725640857868,53.34145634,127.45,127.34,58.09660727]
[1725640857869,7.8476,127.43,127.34,6.5268]
[1725640858685,7.848,127.42,127.34,6.5268]
[1725640859298,58.18008055,127.45,127.34,6.5268]
[1725640859299,7.8489,127.41,127.34,6.5268]
[1725640859589,53.34145634,127.43,127.34,6.5268]
[1725640859793,56.21782116,127.45,127.35,1.56980544]
[1725640860088,27.8471,127.44,127.35,1.56980544]
[1725640860884,20.0,127.44,127.36,50.0]
[1725640861265,53.34145634,127.49,127.38,50.0]
[1725640861470,53.34145634,127.51,127.39,46.56917859]
[1725640861684,53.34145634,127.51,127.38,1.5692294]
[1725640861685,72.95095634,127.49,127.38,1.5692294]
[1725640861989,72.95095634,127.49,127.34,6.5268]
[1725640861990,53.34145634,127.43,127.34,6.5268]
[1725640862197,7.8493,127.4,127.34,6.5268]
[1725640862493,7.8484,127.42,127.34,6.5268]
[1725640862660,7.8484,127.42,127.37,7.8505]
[1725640862861,61.18895634,127.43,127.34,8.09687538]
[1725640863086,20.0,127.42,127.34,8.09687538]
[1725640863395,7.846,127.46,127.41,7.8484]
[1725640863917,7.8465,127.45,127.35,50.0]
[1725640864072,7.8464,127.45,127.35,50.0]
[1725640864586,20.0,127.44,127.34,6.5268]
[1725640864768,53.34145634,127.43,127.34,6.5268]
[1725640865286,1.96238284,127.42,127.34,6.5268]
[1725640865463,61.18925634,127.43,127.34,6.5268]
[1725640865863,61.18925634,127.43,127.35,1.5700356]
[1725640866076,61.18925634,127.43,127.34,6.5268]
[1725640866077,7.8481,127.42,127.34,6.5268]
[1725640866288,7.8487,127.41,127.34,6.5268]
[1725640866864,52.3459712,127.42,127.34,6.5268]
[1725640867073,64.4979712,127.44,127.4,7.8486]
[1725640867381,44.4979712,127.46,127.36,50.0]
[1725640867571,44.4979712,127.46,127.37,1.56957426]
[1725640867964,44.4979712,127.44,127.36,1.96823691]
[1725640868197,7.8476,127.43,127.34,8.09635674]
[1725640868390,7.8476,127.43,127.35,1.56989477]
[1725640868890,52.3449712,127.44,127.35,1.56989477]
[1725640869104,44.4979712,127.44,127.35,1.56982998]
[1725640869266,42.13560086,127.49,127.36,51.56982998]
[1725640869267,44.4979712,127.46,127.36,51.56982998]
[1725640869475,44.4979712,127.46,127.36,51.96808944]
[1725640869668,20.0,127.45,127.36,51.96808944]
[1725640869983,20.0,127.45,127.35,45.0]
[1725640870195,27.8463,127.45,127.36,50.0]
[1725640870394,21.96197278,127.45,127.36,1.96782403]
[1725640870602,20.0,127.45,127.36,1.56957823]
[1725640870904,44.4979712,127.46,127.36,1.56957823]
[1725640871202,20.0,127.45,127.35,46.96789018]
[1725640871496,7.8478,127.43,127.35,1.96789018]
[1725640871703,7.8478,127.43,127.35,1.56997383]
[1725640872200,52.3448712,127.44,127.35,1.56997036]
[1725640872704,52.3464712,127.42,127.34,8.49469018]
[1725640872883,9.81134887,127.41,127.34,6.5268]
[1725640873086,64.4979712,127.4,127.34,6.5268]
[1725640873388,64.4979712,127.4,127.33,15.2295]
[1725640874397,44.4979712,127.42,127.33,15.2295]
[1725640874974,45.0,127.43,127.34,1.57014547]
[1725640875182,27.8482,127.42,127.33,15.2295]
[1725640875496,27.8482,127.42,127.34,1.57010831]
[1725640875700,20.0,127.42,127.33,66.79948201]
[1725640875899,44.4979712,127.46,127.35,50.0]
[1725640877878,44.4979712,127.44,127.37,6.3336]
[1725640878689,52.3452712,127.44,127.37,6.3336]
[1725640878895,44.4979712,127.44,127.37,6.3336]
[1725640879103,44.4979712,127.38,127.34,1.96800669]
[1725640879282,44.4979712,127.38,127.27,14.0]
[1725640879283,7.8566,127.28,127.27,14.0]
[1725640879485,7.8555,127.3,127.27,14.0]
[1725640879691,44.4979712,127.31,127.27,14.0]
[1725640880103,7.8554,127.31,127.27,14.0]
[1725640880399,61.35794386,127.28,127.27,1.55266729]
[1725640880716,73.50134386,127.28,127.27,1.55266729]
[1725640880878,81.35794386,127.28,127.27,1.55266729]
[1725640881381,155.91512145,127.28,127.27,1.55266729]
[1725640881701,45.61746564,127.28,127.27,1.55266729]
[1725640881881,29.64141401,127.28,127.27,1.55266729]
[1725640882084,43.22348546,127.28,127.27,1.55266729]
[1725640882293,108.11353137,127.28,127.27,1.55266729]
[1725640882493,145.85147993,127.28,127.27,1.55266729]
[1725640882707,163.58282427,127.28,127.27,1.55266729]
[1725640883210,19.644,127.27,127.17,7.8631]
[1725640883390,19.644,127.27,127.1,103.50134386]
[1725640883391,7.8604,127.22,127.1,103.50134386]
[1725640883580,91.22031494,127.21,127.11,1.57278338]
[1725640883786,27.861,127.21,127.11,1.57278338]
[1725640884108,1.96589368,127.25,127.11,1.57278338]
[1725640884109,7.859,127.25,127.14,50.0]
[1725640884285,7.861,127.21,127.15,7.8644]
[1725640884604,53.50134386,127.22,127.18,7.8628]
[1725640884804,61.36174386,127.22,127.16,7.8635]
[1725640885005,65.0,127.21,127.17,7.8634]
[1725640885306,53.50134386,127.24,127.13,1.57201543]
[1725640885488,20.0,127.23,127.19,7.8622]
[1725640885677,20.0,127.23,127.13,1.57201543]
[1725640885883,20.0,127.23,127.16,7.8638]
[1725640885884,45.0,127.22,127.16,7.8638]
[1725640886102,1.9657958,127.21,127.17,7.8634]
[1725640886401,20.0,127.23,127.12,65.0]
[1725640886402,20.0,127.23,127.13,51.57263664]
[1725640886588,20.0,127.23,127.2,7.8616]
[1725640886793,20.0,127.23,127.19,7.8621]
[1725640887008,27.8601,127.23,127.18,7.8628]
[1725640887183,45.0,127.22,127.18,7.8628]
[1725640887494,29.82560361,127.23,127.19,7.8621]
[1725640887495,21.96577291,127.23,127.19,7.8621]
[1725640887698,29.82557291,127.23,127.18,7.8627]
[1725640887878,53.50134386,127.22,127.12,15.0]
[1725640888086,20.0,127.21,127.17,7.8634]
[1725640888306,20.0,127.21,127.17,7.8628]
[1725640888606,53.50134386,127.26,127.14,50.0]